bitfinex/quotes_BTCUSD_20250826
["timestamp","ask_amount","ask_price","bid_price","bid_amount"]
[1756198834319,0.784375,110350.0,110340.0,0.46080695]
[1756198834881,0.6031335,110350.0,110340.0,0.46080695]
[1756198835097,0.784375,110350.0,110340.0,0.46080695]
[1756198836252,0.784375,110350.0,110340.0,0.12278902]
[1756198836465,0.784375,110350.0,110340.0,0.27954902]
[1756198836853,0.1812415,110350.0,110340.0,0.27954902]
[1756198837084,0.784375,110350.0,110340.0,0.27954902]
[1756198839777,0.79283463,110350.0,110340.0,0.001]
[1756198840082,0.82008463,110350.0,110340.0,0.1558]
[1756198840293,0.83958077,110350.0,110340.0,0.1558]
[1756198840873,1.33438077,110350.0,110340.0,0.1558]
[1756198841996,0.593373,110350.0,110340.0,0.001]
[1756198842410,1.17958077,110350.0,110340.0,0.001]
[1756198842648,1.17958527,110350.0,110340.0,0.001]
[1756198842808,1.19651354,110350.0,110340.0,0.001]
[1756198843344,1.1965155,110350.0,110340.0,0.001]
[1756198844241,1.3513155,110350.0,110340.0,0.001]
[1756198844447,1.33438527,110350.0,110340.0,0.001]
[1756198844653,1.35131755,110350.0,110340.0,0.001]
[1756198845026,1.19651755,110350.0,110340.0,0.001]
[1756198845287,1.19651755,110350.0,110340.0,0.1558]
[1756198847219,1.35131755,110350.0,110340.0,0.001]
[1756198847443,0.74818405,110350.0,110340.0,0.00408]
[1756198847668,1.17958527,110350.0,110340.0,0.18956365]
[1756198847886,1.15233527,110350.0,110340.0,0.18729793]
[1756198848107,0.02796027,110350.0,110340.0,0.18729793]
[1756198848314,0.00846413,110350.0,110340.0,0.18729793]
[1756198848532,0.00846413,110350.0,110340.0,0.21454593]
[1756198850293,0.00846413,110350.0,110340.0,0.30600795]
[1756198851531,0.79358857,110360.0,110350.0,0.1812415]
[1756198851751,0.82156819,110360.0,110350.0,0.3360415]
[1756198851981,0.82156819,110360.0,110350.0,0.3410815]
[1756198852415,0.64034196,110360.0,110350.0,0.3410815]
[1756198852646,0.80207101,110360.0,110350.0,0.3410815]
[1756198853378,0.80307101,110360.0,110350.0,0.3410815]
[1756198855124,0.80307101,110360.0,110350.0,0.00308]
[1756198855337,0.80307101,110360.0,110350.0,0.15476]
[1756198855763,0.1812415,110350.0,110340.0,0.27579912]
[1756198855983,0.784375,110350.0,110340.0,0.43257912]
[1756198857103,0.1812415,110350.0,110340.0,0.43257912]
[1756198857288,0.784375,110350.0,110340.0,0.43257912]
[1756198857824,0.6031335,110350.0,110340.0,0.43357912]
[1756198860326,0.784375,110350.0,110340.0,0.43357912]
[1756198860758,0.784375,110350.0,110340.0,0.27881912]
[1756198860967,0.784375,110350.0,110340.0,0.43357912]
[1756198862674,0.784375,110350.0,110340.0,0.27881912]
[1756198862914,0.784375,110350.0,110340.0,0.43357912]
[1756198863614,0.784375,110350.0,110340.0,0.15576]
[1756198863830,0.784375,110350.0,110340.0,0.001]
[1756198864263,0.939135,110350.0,110340.0,0.001]
[1756198864794,6.279135,110350.0,110340.0,0.001]
[1756198865507,6.31315848,110350.0,110340.0,0.001]
[1756198868192,6.124375,110350.0,110340.0,0.001]
[1756198868421,6.279135,110350.0,110340.0,0.001]
[1756198868853,6.28759794,110350.0,110340.0,0.001]
[1756198869103,1.124375,110350.0,110340.0,0.00599]
[1756198869302,1.124375,110350.0,110340.0,0.18724793]
[1756198869303,0.5212415,110350.0,110340.0,0.18724793]
[1756198869537,1.124375,110350.0,110340.0,0.18724793]
[1756198871052,0.19047001,110360.0,110340.0,0.18724793]
[1756198871270,0.79360351,110360.0,110340.0,0.27573995]
[1756198871476,0.19047001,110360.0,110350.0,0.15773]
[1756198871692,0.79360351,110360.0,110350.0,0.15975]
[1756198873476,0.79460351,110360.0,110350.0,0.15975]
[1756198873907,0.79360351,110360.0,110350.0,0.15975]
[1756198874118,0.79460351,110360.0,110350.0,0.15975]
[1756198874571,0.79460351,110360.0,110350.0,0.3409915]
[1756198876943,0.61336349,110360.0,110350.0,0.3409915]
[1756198877176,0.79458857,110360.0,110350.0,0.3409915]
[1756198877376,0.61336349,110360.0,110350.0,0.3409915]
[1756198877704,0.61336349,110360.0,110350.0,0.3419915]
[1756198877905,0.61236349,110360.0,110350.0,0.3419915]
[1756198879353,0.79358857,110360.0,110350.0,0.3419915]
[1756198879579,0.19045507,110360.0,110350.0,0.1872315]
[1756198879805,0.79358857,110360.0,110350.0,0.00599]
[1756198880197,0.79358857,110360.0,110350.0,0.1872315]
[1756198880818,0.19045507,110360.0,110350.0,0.1872315]
[1756198881016,0.79358857,110360.0,110350.0,0.1872315]
[1756198891888,0.19045507,110360.0,110350.0,0.1872315]
[1756198892114,0.33600578,110380.0,110360.0,0.18121643]
[1756198892336,0.79287337,110380.0,110370.0,0.18627866]
[1756198892556,0.78441928,110380.0,110370.0,0.18627866]
[1756198892982,0.7934402,110390.0,110370.0,0.27774068]
[1756198893188,0.6031335,110380.0,110370.0,0.27474068]
[1756198893405,0.6051335,110380.0,110370.0,0.27474068]
[1756198893614,0.78632574,110380.0,110370.0,0.27474068]
[1756198893824,0.18419224,110380.0,110370.0,0.43242068]
[1756198894026,0.78732574,110380.0,110370.0,0.43242068]
[1756198894239,0.61540815,110380.0,110370.0,0.43242068]
[1756198894448,0.61440815,110380.0,110370.0,0.43242068]
[1756198894653,0.61240815,110380.0,110370.0,0.43242068]
[1756198894937,0.61340815,110380.0,110370.0,0.43242068]
[1756198895518,0.79460039,110380.0,110370.0,0.27774068]
[1756198895763,0.79460039,110380.0,110370.0,0.43242068]
[1756198896573,0.61340815,110380.0,110370.0,0.43242068]
[1756198896936,0.01027465,110380.0,110370.0,0.43242068]
[1756198897130,0.61340815,110380.0,110370.0,0.43242068]
[1756198897347,0.01027465,110380.0,110370.0,0.43242068]
[1756198897753,0.61340815,110380.0,110370.0,0.43242068]
[1756198899873,0.01027465,110380.0,110370.0,0.43242068]
[1756198901153,0.00927465,110380.0,110370.0,0.43242068]
[1756198901580,0.78485897,110390.0,110380.0,0.18019224]
[1756198901752,0.78485897,110390.0,110380.0,0.18226224]
[1756198901957,0.78485897,110390.0,110380.0,0.18526224]
[1756198902854,0.78585897,110390.0,110380.0,0.18526224]
[1756198904545,0.18272547,110390.0,110380.0,0.18526224]
[1756198904745,0.78585897,110390.0,110380.0,0.18526224]
[1756198904918,0.18272547,110390.0,110380.0,0.33990224]
[1756198905121,0.78585897,110390.0,110380.0,0.33990224]
[1756198906015,0.79515569,110390.0,110380.0,0.33990224]
[1756198906860,0.79515569,110390.0,110380.0,0.18526224]
[1756198907091,0.79515569,110390.0,110380.0,0.33990224]
[1756198908175,0.19202219,110390.0,110380.0,0.33990224]
[1756198908382,0.79515569,110390.0,110380.0,0.33990224]
[1756198908815,0.01077428,110390.0,110380.0,0.43136426]
[1756198911199,0.01077428,110390.0,110380.0,0.27672426]
[1756198911421,0.00977428,110390.0,110380.0,0.43132426]
[1756198911620,0.00977428,110390.0,110380.0,0.43232426]
[1756198912654,0.00977428,110390.0,110380.0,0.27772426]
[1756198912828,0.00977428,110390.0,110380.0,0.43232426]
[1756198915789,0.19095011,110390.0,110380.0,0.43232426]
[1756198916193,0.79408361,110390.0,110380.0,0.43332426]
[1756198917044,0.79408361,110390.0,110380.0,0.27665426]
[1756198917252,0.79408361,110390.0,110380.0,0.43125426]
[1756198917667,0.80253163,110390.0,110380.0,0.1556]
[1756198917896,0.95713163,110390.0,110380.0,0.1556]
[1756198918100,0.94868361,110390.0,110380.0,0.1556]
[1756198918311,0.9571316,110390.0,110380.0,0.1556]
[1756198918532,0.9571316,110390.0,110380.0,0.001]
[1756198921970,0.9571316,110390.0,110380.0,0.00422]
[1756198922356,0.8025316,110390.0,110380.0,0.00422]
[1756198923705,0.8025316,110390.0,110380.0,0.001]
[1756198923911,0.8025316,110390.0,110380.0,0.00422]
[1756198925926,0.8025316,110390.0,110380.0,0.001]
[1756198926380,0.8025316,110390.0,110380.0,0.00422]
[1756198926594,0.79408361,110390.0,110380.0,0.00422]
[1756198926828,0.80254929,110390.0,110380.0,0.00422]
[1756198927236,0.62137346,110390.0,110380.0,0.18757224]
[1756198927444,0.80254929,110390.0,110380.0,0.18757224]
[1756198929376,0.80254929,110390.0,110380.0,0.00638]
[1756198929586,0.80254929,110390.0,110380.0,0.001]
[1756198931275,0.80254929,110390.0,110380.0,0.00422]
[1756198932692,0.80254929,110390.0,110380.0,0.18757224]
[1756198933384,0.79408361,110390.0,110380.0,0.18757224]
[1756198934729,0.78430933,110390.0,110380.0,0.18757224]
[1756198934969,0.00931729,110390.0,110380.0,0.27903426]
[1756198935424,0.6031335,110390.0,110380.0,0.27903426]
[1756198936917,0.61229148,110390.0,110380.0,0.27903426]
[1756198938743,0.00915798,110390.0,110380.0,0.27903426]
[1756198938959,0.6031335,110400.0,110390.0,0.18117583]
[1756198939165,0.60327667,110400.0,110390.0,0.42931785]
[1756198939374,0.61241523,110400.0,110390.0,0.43253785]
[1756198940257,0.61341523,110400.0,110390.0,0.43253785]
[1756198941026,0.61241523,110400.0,110390.0,0.43253785]
[1756198941445,0.61241523,110400.0,110390.0,0.43353785]
[1756198944769,0.79357465,110400.0,110390.0,0.43353785]
[1756198945003,0.79357465,110400.0,110390.0,0.27901785]
[1756198945247,0.79357465,110400.0,110390.0,0.43349785]
[1756198945848,0.78429292,110400.0,110390.0,0.43349785]
[1756198946466,0.79335818,110400.0,110390.0,0.43349785]
[1756198947072,0.79335818,110400.0,110390.0,0.25016202]
[1756198947277,0.79335818,110400.0,110390.0,0.43133785]
[1756198947479,0.79335818,110400.0,110390.0,0.43343785]
[1756198949786,0.79335818,110400.0,110390.0,0.09778202]
[1756198949963,0.79335818,110400.0,110390.0,0.25222202]
[1756198950308,0.79335818,110400.0,110390.0,0.25012202]
[1756198950943,0.79335818,110400.0,110390.0,0.09246202]
[1756198951146,0.79335818,110400.0,110390.0,0.24690202]
[1756198951366,1.39649168,110400.0,110390.0,0.24690202]
[1756198951952,1.39649168,110400.0,110390.0,0.09246202]
[1756198952163,1.55093168,110400.0,110390.0,0.001]
[1756198955420,1.59340269,110400.0,110390.0,0.001]
[1756198955651,1.59340304,110400.0,110390.0,0.001]
[1756198960646,6.59340304,110400.0,110390.0,0.001]
[1756198962668,6.70178683,110400.0,110390.0,0.001]
[1756198962882,6.72902783,110400.0,110390.0,0.001]
[1756198963263,7.17792214,110400.0,110390.0,0.001]
[1756198963464,7.09282143,110400.0,110390.0,0.001]
[1756198963672,0.18119224,110380.0,110370.0,0.1544]
[1756198963859,0.18120866,110370.0,110360.0,0.29737699]
[1756198964072,0.78434216,110370.0,110360.0,0.39396901]
[1756198966016,0.78434216,110370.0,110360.0,0.39796901]
[1756198966567,0.78434216,110370.0,110360.0,0.32467202]
[1756198966787,0.78434216,110370.0,110360.0,0.32667202]
[1756198968949,0.78434216,110370.0,110360.0,0.23521]
[1756198969165,0.78434216,110370.0,110360.0,0.23311]
[1756198969553,0.78434216,110370.0,110360.0,0.16343]
[1756198970132,0.78434216,110370.0,110360.0,0.16143]
[1756198970318,0.78434216,110370.0,110360.0,0.15843]
[1756198970525,0.78434216,110370.0,110360.0,0.15943]
[1756198970842,0.78434216,110370.0,110360.0,0.15843]
[1756198971425,0.81835372,110370.0,110360.0,0.001]
[1756198971852,0.18122508,110360.0,110350.0,0.00292058]
[1756198972081,0.1812415,110350.0,110340.0,0.22408]
[1756198972288,0.784375,110350.0,110340.0,0.24796202]
[1756198973325,0.784375,110350.0,110340.0,0.25243958]
[1756198973804,0.784375,110350.0,110340.0,0.25546958]
[1756198973969,0.784375,110350.0,110340.0,0.16600756]
[1756198975570,0.80062333,110350.0,110340.0,0.16600756]
[1756198976558,0.19748983,110350.0,110340.0,0.34726549]
[1756198976758,0.80062333,110350.0,110340.0,0.34726549]
[1756198978880,0.80062333,110350.0,110340.0,0.16600756]
[1756198980399,0.80062333,110350.0,110340.0,0.34726549]
[1756198981809,0.80062333,110350.0,110340.0,0.16600756]
[1756198984093,0.80062333,110350.0,110340.0,0.34726549]
[1756198984304,0.80062333,110350.0,110340.0,0.16600756]
[1756198985969,0.80062333,110350.0,110340.0,0.16390756]
[1756198986304,0.95498333,110350.0,110340.0,0.16390756]
[1756198986516,0.95498333,110350.0,110340.0,0.00647756]
[1756198986746,0.80062333,110350.0,110340.0,0.00954756]
[1756198986953,0.80062333,110350.0,110340.0,0.00647756]
[1756198987376,0.95498333,110350.0,110340.0,0.00954756]
[1756198987990,0.95498333,110350.0,110340.0,0.01169756]
[1756198988299,0.95498333,110350.0,110340.0,0.00954756]
[1756198988506,0.95498333,110350.0,110340.0,0.00647756]
[1756198989098,0.95498333,110350.0,110340.0,0.00954756]
[1756198990180,0.97186471,110350.0,110340.0,0.00954756]
[1756198991231,0.97186471,110350.0,110340.0,0.00554756]
[1756198991434,0.97186471,110350.0,110340.0,0.00354756]
[1756198991836,0.97186471,110350.0,110340.0,0.00454756]
[1756198992218,0.97186471,110350.0,110340.0,0.00669756]
[1756198992397,0.98030859,110350.0,110340.0,0.00669756]
[1756198992746,0.9803087,110350.0,110340.0,0.00669756]
[1756198992917,0.98031516,110350.0,110340.0,0.00669756]
[1756198993464,0.98032034,110350.0,110340.0,0.00669756]
[1756198993688,0.82596034,110350.0,110340.0,0.00669756]
[1756198995386,1.1277108,110350.0,110340.0,0.00669756]
[1756198995529,0.22282684,110350.0,110340.0,0.00669756]
[1756198995730,1.1277108,110350.0,110340.0,0.00669756]
[1756198997652,0.82607204,110350.0,110340.0,0.00669756]
[1756199001134,0.82607204,110350.0,110340.0,0.00454756]
[1756199001545,0.82607204,110350.0,110340.0,0.00669756]
[1756199002192,0.80917897,110350.0,110340.0,0.00669756]
[1756199002408,0.80920218,110350.0,110340.0,0.00669756]
[1756199002637,0.8261367,110350.0,110340.0,0.00669756]
[1756199003777,0.2228915,110350.0,110340.0,0.00669756]
[1756199003914,0.8261367,110350.0,110340.0,0.00669756]
[1756199008207,0.80920225,110350.0,110340.0,0.00669756]
[1756199008968,0.20595705,110350.0,110340.0,0.00669756]
[1756199009174,0.80920225,110350.0,110340.0,0.00669756]
[1756199011523,0.80920225,110350.0,110340.0,0.00454756]
[1756199012058,0.8092088,110350.0,110340.0,0.00454756]
[1756199012519,0.8092088,110350.0,110340.0,0.00652756]
[1756199014127,0.8092088,110350.0,110340.0,0.00454756]
[1756199014321,0.8092088,110350.0,110340.0,0.00652756]
[1756199015267,0.80073503,110350.0,110340.0,0.00652756]
[1756199015458,0.80921028,110350.0,110340.0,0.00652756]
[1756199015668,0.80073503,110350.0,110340.0,0.00652756]
[1756199019252,0.80073503,110350.0,110340.0,0.18778549]
[1756199019253,0.19748983,110350.0,110340.0,0.18778549]
[1756199019478,0.64979999,110350.0,110340.0,0.18778549]
[1756199019906,0.19748983,110350.0,110340.0,0.18778549]
[1756199020583,0.01624833,110350.0,110340.0,0.27924751]
[1756199020835,0.19748983,110350.0,110340.0,0.27924751]
[1756199021038,0.1812415,110350.0,110340.0,0.27924751]
[1756199021282,0.21042021,110350.0,110340.0,0.27924751]
[1756199023421,0.18122508,110360.0,110350.0,0.1812415]
[1756199023622,0.63353524,110360.0,110350.0,0.3374215]
[1756199023849,0.66358725,110360.0,110350.0,0.3403515]
[1756199024263,0.21127709,110360.0,110350.0,0.3403515]
[1756199024496,0.21127709,110360.0,110350.0,0.79266166]
[1756199024946,0.21127709,110360.0,110350.0,0.3403515]
[1756199025171,0.02787453,110360.0,110350.0,0.3403515]
[1756199025386,0.63355021,110360.0,110350.0,0.3403515]
[1756199025609,0.63455021,110360.0,110350.0,0.3403515]
[1756199025805,0.63355021,110360.0,110350.0,0.3403515]
[1756199026453,0.18124005,110360.0,110350.0,0.3403515]
[1756199026670,0.79677925,110370.0,110360.0,0.18122508]
[1756199026874,0.64257925,110370.0,110360.0,0.18320508]
[1756199027099,0.67155108,110370.0,110360.0,0.18613508]
[1756199027535,0.67155108,110370.0,110360.0,0.00491]
[1756199028661,0.67255108,110370.0,110360.0,0.00491]
[1756199029510,0.67255108,110370.0,110360.0,0.18613508]
[1756199029920,0.67255108,110370.0,110360.0,0.00491]
[1756199030124,0.67255108,110370.0,110360.0,0.18613508]
[1756199030691,0.67255108,110370.0,110360.0,0.00491]
[1756199031126,0.67255108,110370.0,110360.0,0.15907]
[1756199032660,0.67255108,110370.0,110360.0,0.34029508]
[1756199032922,0.67255108,110370.0,110360.0,0.00491]
[1756199033121,0.67255108,110370.0,110360.0,0.15903]
[1756199033535,0.67255108,110370.0,110360.0,0.00491]
[1756199033738,0.18122508,110360.0,110350.0,0.27575502]
[1756199033953,0.18122508,110360.0,110350.0,0.09637202]
[1756199033954,0.63353524,110360.0,110350.0,0.09637202]
[1756199034191,0.63353524,110360.0,110350.0,0.27773602]
[1756199034730,0.63353524,110360.0,110350.0,0.45897752]
[1756199035043,0.63353524,110360.0,110350.0,0.45997752]
[1756199035507,0.63353524,110360.0,110350.0,0.12461602]
[1756199035718,0.63353524,110360.0,110350.0,0.27873602]
[1756199036149,0.18122508,110360.0,110350.0,0.27873602]
[1756199036484,0.63353524,110360.0,110350.0,0.27873602]
[1756199037247,0.63353524,110360.0,110350.0,0.45997752]
[1756199039446,0.63353524,110360.0,110350.0,0.45993752]
[1756199040666,0.18122508,110360.0,110350.0,0.45993752]
[1756199040862,0.63353524,110360.0,110350.0,0.45993752]
[1756199041810,0.63353524,110360.0,110350.0,0.27378602]
[1756199042063,1.0858454,110360.0,110350.0,0.27378602]
[1756199042294,1.0858454,110360.0,110350.0,0.27693602]
[1756199042477,1.0858454,110360.0,110350.0,0.46014752]
[1756199042682,0.63353524,110360.0,110350.0,0.46014752]
[1756199043289,0.63353524,110360.0,110350.0,0.27890602]
[1756199043476,0.63353524,110360.0,110350.0,0.46014752]
[1756199044380,0.45231016,110360.0,110350.0,0.46014752]
[1756199044763,0.67155108,110370.0,110360.0,0.18122508]
[1756199044965,0.67155108,110370.0,110360.0,0.18634508]
[1756199045326,0.027246,110380.0,110360.0,0.73011726]
[1756199045534,0.63350082,110390.0,110370.0,0.88443594]
[1756199045742,0.63350082,110390.0,110380.0,0.18631224]
[1756199046965,0.66386062,110390.0,110380.0,0.18531224]
[1756199047371,0.21155046,110390.0,110380.0,0.18531224]
[1756199047800,0.21255046,110390.0,110380.0,0.18531224]
[1756199048242,0.97412502,110400.0,110380.0,0.18531224]
[1756199048441,0.18261082,110390.0,110380.0,0.33949541]
[1756199048784,0.18261082,110390.0,110380.0,0.34046541]
[1756199049160,0.18261082,110390.0,110380.0,0.34246541]
[1756199049489,0.785268,110390.0,110380.0,0.34246541]
[1756199049697,0.785268,110390.0,110380.0,0.34346541]
[1756199050450,0.81563273,110390.0,110380.0,0.34346541]
[1756199050969,0.81563273,110390.0,110380.0,0.34342541]
[1756199051672,0.21156555,110390.0,110380.0,0.34342541]
[1756199051812,0.81422273,110390.0,110380.0,0.34342541]
[1756199052474,0.21156555,110390.0,110380.0,0.34342541]
[1756199053438,0.027239,110400.0,110390.0,0.18117583]
[1756199053633,0.94960243,110410.0,110390.0,0.18629583]
[1756199053841,0.98529659,110410.0,110390.0,0.18314583]
[1756199054053,1.32529659,110410.0,110400.0,0.00315]
[1756199054267,1.17327659,110410.0,110400.0,0.15908]
[1756199054492,0.59958694,110410.0,110400.0,0.34023942]
[1756199054930,1.20224412,110410.0,110400.0,0.34023942]
[1756199055114,1.17500912,110410.0,110400.0,0.34023942]
[1756199055448,1.17500912,110410.0,110400.0,0.15908]
[1756199055850,1.17500912,110410.0,110400.0,0.00512]
[1756199056117,0.18115942,110400.0,110390.0,0.21256083]
[1756199056444,0.18115942,110400.0,110390.0,0.45895285]
[1756199056769,0.56191278,110410.0,110390.0,0.45895285]
[1756199057144,1.20026103,110410.0,110390.0,0.45895285]
[1756199057348,1.20026103,110410.0,110390.0,0.45580285]
[1756199057551,1.20026103,110410.0,110400.0,0.00315]
[1756199057751,1.20224103,110410.0,110400.0,0.00315]
[1756199059304,0.18115942,110400.0,110390.0,0.30302285]
[1756199059548,0.18115942,110400.0,110390.0,0.45891285]
[1756199060257,1.19180496,110410.0,110390.0,0.45891285]
[1756199060465,0.40195399,110410.0,110390.0,0.45576285]
[1756199060669,0.82124576,110410.0,110400.0,0.18430942]
[1756199060872,0.82322576,110410.0,110400.0,0.18627942]
[1756199061074,0.83228291,110410.0,110400.0,0.18627942]
[1756199061813,0.83228291,110410.0,110400.0,0.00512]
[1756199062719,0.22962573,110410.0,110400.0,0.00512]
[1756199062919,0.83228291,110410.0,110400.0,0.00512]
[1756199063575,0.22962573,110410.0,110400.0,0.18627942]
[1756199063716,0.83228291,110410.0,110400.0,0.18627942]
[1756199065003,0.22764573,110410.0,110400.0,0.18627942]
[1756199065405,0.83030291,110410.0,110400.0,0.18627942]
[1756199066274,0.83030291,110410.0,110400.0,0.34015942]
[1756199067698,0.83030291,110410.0,110400.0,0.159]
[1756199068048,0.61171433,110410.0,110400.0,0.34015942]
[1756199068255,0.79288309,110410.0,110400.0,0.34015942]
[1756199070321,0.82216113,110410.0,110400.0,0.34015942]
[1756199071272,0.82216113,110410.0,110400.0,0.36739242]
[1756199071507,0.6713722,110410.0,110400.0,0.36739242]
[1756199072118,0.6713722,110410.0,110400.0,0.36735242]
[1756199072328,0.6713722,110410.0,110400.0,0.186193]
[1756199072541,0.6732522,110410.0,110400.0,0.186193]
[1756199073400,0.6732522,110410.0,110400.0,0.032353]
[1756199073583,0.6732522,110410.0,110400.0,0.181073]
[1756199073797,0.6732522,110410.0,110400.0,0.184313]
[1756199074007,0.6732522,110410.0,110400.0,0.030473]
[1756199074207,0.6732522,110410.0,110400.0,0.184313]
[1756199075626,0.6732522,110410.0,110400.0,0.186263]
[1756199076766,0.6732522,110410.0,110400.0,0.027233]
[1756199076980,0.6732522,110410.0,110400.0,0.181033]
[1756199077217,0.18115942,110400.0,110390.0,0.24526202]
[1756199077402,0.18115942,110400.0,110390.0,0.27249602]
[1756199077403,1.08687592,110400.0,110390.0,0.27249602]
[1756199078553,1.08687592,110400.0,110380.0,0.15394317]
[1756199078554,0.18117583,110390.0,110380.0,0.15394317]
[1756199078789,0.63502408,110390.0,110380.0,0.27264219]
[1756199079349,0.78597843,110390.0,110380.0,0.27264219]
[1756199079793,0.78597843,110390.0,110380.0,0.27464219]
[1756199080001,0.79445664,110390.0,110380.0,0.27564219]
[1756199080938,0.79445664,110390.0,110380.0,0.46202443]
[1756199081776,0.18965404,110390.0,110380.0,0.46202443]
[1756199081991,0.79247664,110390.0,110380.0,0.46202443]
[1756199082311,0.79247664,110390.0,110380.0,0.28083219]
[1756199082523,0.79445664,110390.0,110380.0,0.27564219]
[1756199084443,0.79445664,110390.0,110380.0,0.27888219]
[1756199084615,0.19163404,110390.0,110380.0,0.28083219]
[1756199084829,0.79445664,110390.0,110380.0,0.28083219]
[1756199085026,0.79445664,110390.0,110380.0,0.27564219]
[1756199085589,0.19163404,110390.0,110380.0,0.27564219]
[1756199085796,0.79445664,110390.0,110380.0,0.27564219]
[1756199086388,0.78597843,110390.0,110380.0,0.27888219]
[1756199087110,0.78597843,110390.0,110380.0,0.27564219]
[1756199088843,0.93973843,110390.0,110380.0,0.03038017]
[1756199089048,0.95009247,110390.0,110380.0,0.15690317]
[1756199089255,0.95009247,110390.0,110380.0,0.00314317]
[1756199089808,0.97733247,110390.0,110380.0,0.00314317]
[1756199091163,0.97733247,110390.0,110380.0,0.00214317]
[1756199091354,0.82357247,110390.0,110380.0,0.00214317]
[1756199091537,0.97733247,110390.0,110380.0,0.00314317]
[1756199091671,0.97733247,110390.0,110380.0,0.00114317]
[1756199091880,0.97733247,110390.0,110380.0,0.00214317]
[1756199092095,0.9773265,110390.0,110380.0,0.00214317]
[1756199092796,5.8235665,110390.0,110380.0,0.00214317]
[1756199093298,5.9773265,110390.0,110380.0,0.00214317]
[1756199093746,5.9754465,110390.0,110380.0,0.00214317]
[1756199093927,5.8216865,110390.0,110380.0,0.00214317]
[1756199094162,0.78399843,110390.0,110380.0,0.00733317]
[1756199094380,0.93771843,110390.0,110380.0,0.00733317]
[1756199094582,0.78399843,110390.0,110380.0,0.00733317]
[1756199100467,0.18117583,110390.0,110380.0,0.19079031]
[1756199100686,0.96494302,110400.0,110380.0,0.18852541]
[1756199100894,0.18117583,110390.0,110380.0,0.18528541]
[1756199101527,0.18117583,110390.0,110380.0,0.18839541]
[1756199102283,0.34,110390.0,110380.0,0.27985743]
[1756199102452,0.36211842,110400.0,110390.0,0.18117583]
[1756199102700,0.54839842,110400.0,110390.0,0.18318583]
[1756199102878,0.54839842,110400.0,110390.0,0.18629583]
[1756199103112,1.12398202,110400.0,110390.0,0.18629583]
[1756199103321,1.12398202,110400.0,110390.0,0.34001583]
[1756199105614,1.12498202,110400.0,110390.0,0.34101583]
[1756199105818,1.12398202,110400.0,110390.0,0.34101583]
[1756199106226,0.52115942,110400.0,110390.0,0.34101583]
[1756199107296,1.12398202,110400.0,110390.0,0.34101583]
[1756199107666,0.78398202,110400.0,110390.0,0.34101583]
[1756199108369,0.78596202,110400.0,110390.0,0.15472]
[1756199108584,1.39066462,110400.0,110390.0,0.15468]
[1756199108809,0.7688357,110400.0,110390.0,0.001]
[1756199109015,0.93964202,110400.0,110390.0,0.001]
[1756199110365,0.93964202,110400.0,110390.0,0.00411]
[1756199112121,1.27964202,110400.0,110390.0,0.00612]
[1756199113013,1.27964202,110400.0,110390.0,0.00411]
[1756199113238,1.27964202,110400.0,110390.0,0.001]
[1756199114122,1.27964202,110400.0,110390.0,0.00411]
[1756199115685,1.27964202,110400.0,110390.0,0.00612]
[1756199115888,1.27964202,110400.0,110390.0,0.00411]
[1756199116094,1.27964202,110400.0,110390.0,0.001]
[1756199117273,7.07572777,110400.0,110390.0,0.001]
[1756199117476,7.13698233,110400.0,110390.0,0.001]
[1756199117692,7.16028786,110400.0,110390.0,0.001]
[1756199118125,7.16020786,110400.0,110390.0,0.001]
[1756199118333,7.16020786,110400.0,110380.0,0.00014317]
[1756199118334,0.52117583,110390.0,110380.0,0.00014317]
[1756199118546,6.28607427,110390.0,110380.0,0.00014317]
[1756199118765,6.28993427,110390.0,110380.0,0.00014317]
[1756199119036,6.35118883,110390.0,110380.0,0.00014317]
[1756199119489,6.47838257,110390.0,110380.0,0.00014317]
[1756199119690,6.45959618,110390.0,110380.0,0.00014317]
[1756199120151,6.46059618,110390.0,110380.0,0.00014317]
[1756199120367,6.46694872,110390.0,110380.0,0.00014317]
[1756199120797,6.46794872,110390.0,110380.0,0.00014317]
[1756199121837,6.50877443,110390.0,110380.0,0.00014317]
[1756199122242,6.51724207,110390.0,110380.0,0.00014317]
[1756199122446,6.57209369,110390.0,110380.0,0.00014317]
[1756199122895,6.62460603,110390.0,110380.0,0.00014317]
[1756199123846,6.62360603,110390.0,110380.0,0.00014317]
[1756199124027,6.62260603,110390.0,110380.0,0.00014317]
[1756199124234,6.62460603,110390.0,110380.0,0.00014317]
[1756199124449,6.62660603,110390.0,110380.0,0.00014317]
[1756199125386,6.62660078,110390.0,110380.0,0.00014317]
[1756199125600,6.62657091,110390.0,110380.0,0.00014317]
[1756199126206,6.59677319,110390.0,110380.0,0.00014317]
[1756199126829,7.19959579,110390.0,110380.0,0.00014317]
[1756199127068,7.29104108,110390.0,110380.0,1e-08]
[1756199127285,0.18120866,110370.0,110350.0,0.00311]
[1756199127503,0.18120866,110370.0,110350.0,0.00358756]
[1756199127504,7.04047028,110360.0,110350.0,0.00358756]
[1756199127718,1.54047028,110360.0,110350.0,0.00561756]
[1756199128006,1.56771728,110360.0,110350.0,0.00561756]
[1756199128647,1.56771728,110360.0,110350.0,0.00661756]
[1756199129036,1.56771728,110360.0,110350.0,0.00561756]
[1756199129244,1.56771728,110360.0,110350.0,0.00761756]
[1756199129737,1.41411728,110360.0,110350.0,0.00761756]
[1756199129952,1.56771728,110360.0,110350.0,0.00761756]
[1756199130591,1.56771728,110360.0,110350.0,0.00861756]
[1756199131431,1.41411728,110360.0,110350.0,0.00861756]
[1756199131630,1.56771728,110360.0,110350.0,0.00861756]
[1756199131777,0.96489468,110360.0,110350.0,0.00861756]
[1756199132352,0.81129468,110360.0,110350.0,0.00861756]
[1756199132506,0.96489468,110360.0,110350.0,0.00861756]
[1756199133354,0.36207208,110360.0,110350.0,0.00861756]
[1756199133557,0.96390684,110360.0,110350.0,0.00861756]
[1756199134664,0.36108424,110360.0,110350.0,0.00861756]
[1756199134875,0.96386684,110360.0,110350.0,0.00861756]
[1756199136350,0.33478508,110360.0,110350.0,0.00861756]
[1756199136558,0.93760768,110360.0,110350.0,0.00861756]
[1756199139858,0.33478508,110360.0,110350.0,0.00861756]
[1756199140074,0.93760768,110360.0,110350.0,0.00861756]
[1756199140805,0.93958768,110360.0,110350.0,0.00861756]
[1756199142024,0.78602768,110360.0,110350.0,0.00861756]
[1756199142235,0.93958768,110360.0,110350.0,0.00861756]
[1756199142440,0.93958768,110360.0,110350.0,0.00347756]
[1756199142872,0.93958768,110360.0,110350.0,0.00664756]
[1756199143296,0.94805726,110360.0,110350.0,0.00664756]
[1756199143603,0.94805726,110360.0,110350.0,0.00347756]
[1756199144018,0.94805726,110360.0,110350.0,0.00867756]
[1756199144665,0.94806028,110360.0,110350.0,0.00867756]
[1756199145972,0.94806028,110360.0,110350.0,0.00347756]
[1756199146193,0.96502215,110360.0,110350.0,0.00347756]
[1756199146412,0.96502215,110360.0,110350.0,0.00664756]